[Event "Un Sabato di Lampo"]
[Site "Chess.com"]
[Date "2020.04.11"]
[Round "1"]
[White "crippo"]
[Black "SpessoInstabile"]
[Result "1-0"]
[WhiteElo "1556"]
[BlackElo "1299"]
[TimeControl "300+2"]
[EndTime "5:57:57 PDT"]
[Termination "crippo ha vinto per abbandono"]

1. e4 {[%clk 0:05:00.7]} 1... c5 {[%clk 0:05:00.2]} 2. Nc3 {[%clk 0:04:58.7]}
2... e6 {[%clk 0:05:01.8]} 3. Nf3 {[%clk 0:04:56.1]} 3... a6 {[%clk 0:05:03.3]}
4. a4 {[%clk 0:04:56.1]} 4... b5 {[%clk 0:05:04.9]} 5. axb5 {[%clk 0:04:57]}
5... Qb6 {[%clk 0:05:04.8]} 6. bxa6 {[%clk 0:04:57.3]} 6... Rxa6 {[%clk
0:05:06]} 7. Rxa6 {[%clk 0:04:56.8]} 7... Bxa6 {[%clk 0:05:07.2]} 8. Bxa6 {[%clk
0:04:55.8]} 8... Qxa6 {[%clk 0:05:08.4]} 9. d3 {[%clk 0:04:56.9]} 9... d6 {[%clk
0:05:08.7]} 10. O-O {[%clk 0:04:56.7]} 10... e5 {[%clk 0:05:09.5]} 11. Bd2
{[%clk 0:04:51.5]} 11... Nf6 {[%clk 0:05:10]} 12. Nd5 {[%clk 0:04:50.4]} 12...
Nbd7 {[%clk 0:05:09]} 13. Nc7+ {[%clk 0:04:50.1]} 1-0

[Event "Un Sabato di Lampo"]
[Site "Chess.com"]
[Date "2020.04.11"]
[Round "1"]
[White "sirmale49"]
[Black "mr6701"]
[Result "0-1"]
[WhiteElo "1428"]
[BlackElo "2106"]
[TimeControl "300+2"]
[EndTime "6:06:21 PDT"]
[Termination "mr6701 ha vinto per tempo"]

1. e4 {[%clk 0:04:56.5]} 1... d5 {[%clk 0:05:00.9]} 2. e5 {[%clk 0:04:55.5]}
2... c5 {[%clk 0:05:00.8]} 3. f4 {[%clk 0:04:56.4]} 3... Nc6 {[%clk 0:05:02.1]}
4. Nf3 {[%clk 0:04:57.4]} 4... Bg4 {[%clk 0:05:03.2]} 5. Bb5 {[%clk 0:04:58.1]}
5... Qb6 {[%clk 0:05:02.3]} 6. Bxc6+ {[%clk 0:04:49.6]} 6... Qxc6 {[%clk
0:05:02.9]} 7. O-O {[%clk 0:04:49.2]} 7... d4 {[%clk 0:05:04.1]} 8. d3 {[%clk
0:04:46.1]} 8... e6 {[%clk 0:05:05.1]} 9. Nbd2 {[%clk 0:04:40]} 9... Ne7 {[%clk
0:05:05.4]} 10. Nc4 {[%clk 0:04:36.6]} 10... Nd5 {[%clk 0:05:05.1]} 11. h3
{[%clk 0:04:23]} 11... Bh5 {[%clk 0:05:04.5]} 12. g4 {[%clk 0:04:23]} 12... Bg6
{[%clk 0:05:05.4]} 13. Qe2 {[%clk 0:03:56.9]} 13... b5 {[%clk 0:05:03.9]} 14.
Nd6+ {[%clk 0:03:45.4]} 14... Bxd6 {[%clk 0:05:03.8]} 15. exd6 {[%clk
0:03:46.3]} 15... Qxd6 {[%clk 0:05:05.7]} 16. Ne5 {[%clk 0:03:45]} 16... O-O
{[%clk 0:05:02]} 17. a3 {[%clk 0:03:30.6]} 17... f6 {[%clk 0:05:02.6]} 18. Nxg6
{[%clk 0:03:28.3]} 18... hxg6 {[%clk 0:05:03]} 19. Bd2 {[%clk 0:03:19.6]} 19...
Rae8 {[%clk 0:05:02.6]} 20. Qe4 {[%clk 0:02:56.4]} 20... e5 {[%clk 0:04:48.2]}
21. f5 {[%clk 0:02:31.9]} 21... g5 {[%clk 0:04:40.7]} 22. Rac1 {[%clk
0:02:02.6]} 22... Nf4 {[%clk 0:04:41.1]} 23. Kh2 {[%clk 0:01:41.1]} 23... Kf7
{[%clk 0:04:28.7]} 24. Kg3 {[%clk 0:01:01.3]} 24... Rh8 {[%clk 0:04:23.3]} 25.
Rh1 {[%clk 0:00:57.1]} 25... Ne2+ {[%clk 0:04:17.5]} 26. Qxe2 {[%clk 0:00:44.8]}
26... e4+ {[%clk 0:04:19]} 27. Kg2 {[%clk 0:00:40.8]} 27... e3 {[%clk 0:04:17]}
28. Be1 {[%clk 0:00:35]} 28... Re7 {[%clk 0:03:38.5]} 29. Bg3 {[%clk 0:00:32.5]}
29... Qa6 {[%clk 0:03:36.5]} 30. Rce1 {[%clk 0:00:23.3]} 30... Rhe8 {[%clk
0:03:36.7]} 31. h4 {[%clk 0:00:17.8]} 31... gxh4 {[%clk 0:03:36.1]} 32. Rxh4
{[%clk 0:00:16.2]} 32... Qc6+ {[%clk 0:03:35.1]} 33. Kg1 {[%clk 0:00:15.7]}
33... c4 {[%clk 0:03:28.6]} 34. Kh2 {[%clk 0:00:06.9]} 34... c3 {[%clk
0:03:28.2]} 35. b3 {[%clk 0:00:07.2]} 35... b4 {[%clk 0:03:28.2]} 36. a4 {[%clk
0:00:07.4]} 36... Rg8 {[%clk 0:03:23.8]} 37. Bf4 {[%clk 0:00:02.5]} 37... Ree8
{[%clk 0:03:24.5]} 0-1

[Event "Un Sabato di Lampo"]
[Site "Chess.com"]
[Date "2020.04.11"]
[Round "1"]
[White "BungalowBill"]
[Black "MarcoCiva"]
[Result "1-0"]
[WhiteElo "1636"]
[BlackElo "1413"]
[TimeControl "300+2"]
[EndTime "6:07:01 PDT"]
[Termination "BungalowBill ha vinto per abbandono"]

1. d4 {[%clk 0:05:01]} 1... Nf6 {[%clk 0:04:59.5]} 2. c4 {[%clk 0:05:01.4]} 2...
d5 {[%clk 0:04:59.3]} 3. cxd5 {[%clk 0:05:01.5]} 3... Nxd5 {[%clk 0:04:59.3]} 4.
e4 {[%clk 0:05:02.5]} 4... Nb6 {[%clk 0:04:59.6]} 5. Nc3 {[%clk 0:05:03.4]} 5...
e6 {[%clk 0:04:53.1]} 6. Be3 {[%clk 0:05:03.9]} 6... Bb4 {[%clk 0:04:53.5]} 7.
Bd3 {[%clk 0:05:03.5]} 7... O-O {[%clk 0:04:54]} 8. Ne2 {[%clk 0:05:04]} 8...
Bd7 {[%clk 0:04:49.3]} 9. O-O {[%clk 0:05:03]} 9... Na6 {[%clk 0:04:45.8]} 10.
Rc1 {[%clk 0:05:02.4]} 10... Qe7 {[%clk 0:04:40.1]} 11. f3 {[%clk 0:04:58.8]}
11... c5 {[%clk 0:04:39.2]} 12. Bb1 {[%clk 0:04:52]} 12... cxd4 {[%clk 0:04:29]}
13. Nxd4 {[%clk 0:04:43.7]} 13... e5 {[%clk 0:04:25]} 14. Nf5 {[%clk 0:04:38.5]}
14... Bxf5 {[%clk 0:04:22.4]} 15. exf5 {[%clk 0:04:38.5]} 15... Rfd8 {[%clk
0:04:16.6]} 16. Qc2 {[%clk 0:04:37.4]} 16... f6 {[%clk 0:04:07.1]} 17. Qb3+
{[%clk 0:04:13.7]} 17... Kh8 {[%clk 0:03:58.2]} 18. Bxb6 {[%clk 0:04:11.7]}
18... axb6 {[%clk 0:03:49.5]} 19. Nd5 {[%clk 0:04:09.5]} 19... Bc5+ {[%clk
0:03:48.9]} 20. Kh1 {[%clk 0:04:08.8]} 20... Qf7 {[%clk 0:03:18.2]} 21. Rfd1
{[%clk 0:03:59.7]} 21... Nc7 {[%clk 0:03:13.7]} 22. Nxb6 {[%clk 0:03:43.5]}
22... Qxb3 {[%clk 0:03:13.4]} 23. axb3 {[%clk 0:03:42.1]} 23... Bxb6 {[%clk
0:03:11.7]} 24. Be4 {[%clk 0:03:35.4]} 24... Rab8 {[%clk 0:02:52.2]} 25. Rxd8+
{[%clk 0:03:27.5]} 25... Rxd8 {[%clk 0:02:52.4]} 26. g3 {[%clk 0:03:25.7]} 26...
Bd4 {[%clk 0:02:52.9]} 27. Rxc7 {[%clk 0:03:22.3]} 27... b6 {[%clk 0:02:39.7]}
28. b4 {[%clk 0:03:10.8]} 28... Bxb2 {[%clk 0:02:39.8]} 29. b5 {[%clk
0:03:06.6]} 29... Bd4 {[%clk 0:02:36.6]} 30. Bd5 {[%clk 0:02:56.8]} 30... h5
{[%clk 0:02:36.1]} 31. Be6 {[%clk 0:02:55.7]} 31... Kh7 {[%clk 0:02:28.7]} 32.
h4 {[%clk 0:02:55.5]} 32... Ra8 {[%clk 0:02:08.5]} 33. Kg2 {[%clk 0:02:49.2]}
33... Ra5 {[%clk 0:01:50.6]} 34. Bd7 {[%clk 0:02:47.1]} 34... Be3 {[%clk
0:01:46.9]} 35. Bc6 {[%clk 0:02:45.3]} 35... Kh6 {[%clk 0:01:42.4]} 36. g4
{[%clk 0:02:45]} 36... hxg4 {[%clk 0:01:38.5]} 37. fxg4 {[%clk 0:02:45.8]} 37...
g5 {[%clk 0:01:39.4]} 38. hxg5+ {[%clk 0:02:45.1]} 38... Bxg5 {[%clk 0:01:29]}
39. Rb7 {[%clk 0:02:44.3]} 39... Be3 {[%clk 0:01:26.7]} 40. Rf7 {[%clk
0:02:42.5]} 40... Bg5 {[%clk 0:01:25]} 41. Rf8 {[%clk 0:02:40.7]} 41... Ra2+
{[%clk 0:01:21.7]} 42. Kf3 {[%clk 0:02:40.8]} 42... Ra3+ {[%clk 0:01:21.4]} 43.
Ke2 {[%clk 0:02:40.1]} 43... Ra4 {[%clk 0:01:11.8]} 44. Bf3 {[%clk 0:02:35.3]}
44... Rb4 {[%clk 0:01:08.3]} 45. Bc6 {[%clk 0:02:32.4]} 45... Rxg4 {[%clk
0:01:08.3]} 46. Rg8 {[%clk 0:02:29.9]} 46... Re4+ {[%clk 0:01:05.2]} 47. Bxe4
{[%clk 0:02:28.5]} 1-0

[Event "Un Sabato di Lampo"]
[Site "Chess.com"]
[Date "2020.04.11"]
[Round "1"]
[White "SanSecondoPR"]
[Black "markk000"]
[Result "0-1"]
[WhiteElo "1302"]
[BlackElo "1559"]
[TimeControl "300+2"]
[EndTime "6:07:57 PDT"]
[Termination "markk000 ha vinto per tempo"]

1. e4 {[%clk 0:05:00.5]} 1... c5 {[%clk 0:04:57.3]} 2. d4 {[%clk 0:04:59.5]}
2... cxd4 {[%clk 0:04:54.6]} 3. Nf3 {[%clk 0:04:59.1]} 3... Nc6 {[%clk
0:04:51.5]} 4. Nxd4 {[%clk 0:04:58.5]} 4... Nf6 {[%clk 0:04:52]} 5. Nc3 {[%clk
0:04:57.8]} 5... g6 {[%clk 0:04:47.8]} 6. Bg5 {[%clk 0:04:56.7]} 6... Bg7 {[%clk
0:04:47.9]} 7. Nb3 {[%clk 0:04:47.6]} 7... O-O {[%clk 0:04:46.8]} 8. Qd2 {[%clk
0:04:38.4]} 8... e6 {[%clk 0:04:29.5]} 9. O-O-O {[%clk 0:04:36.6]} 9... a5
{[%clk 0:04:26.9]} 10. Bh6 {[%clk 0:04:31.5]} 10... a4 {[%clk 0:04:27.9]} 11.
Nc5 {[%clk 0:04:17.2]} 11... a3 {[%clk 0:04:16.5]} 12. b3 {[%clk 0:04:08.7]}
12... b6 {[%clk 0:04:16]} 13. Nd3 {[%clk 0:03:50.3]} 13... d5 {[%clk 0:04:03.1]}
14. Bxg7 {[%clk 0:03:48.6]} 14... Kxg7 {[%clk 0:04:01.7]} 15. e5 {[%clk
0:03:46.1]} 15... Ng4 {[%clk 0:03:51.6]} 16. f3 {[%clk 0:03:39.5]} 16... Ngxe5
{[%clk 0:03:46.4]} 17. Nxe5 {[%clk 0:03:34.6]} 17... Nxe5 {[%clk 0:03:48.3]} 18.
f4 {[%clk 0:03:25]} 18... Nc6 {[%clk 0:03:37.5]} 19. g4 {[%clk 0:03:13.8]} 19...
d4 {[%clk 0:03:31.6]} 20. Ne4 {[%clk 0:02:59.8]} 20... Qd5 {[%clk 0:03:17.2]}
21. Bg2 {[%clk 0:02:53.5]} 21... Qb5 {[%clk 0:03:07]} 22. Bf1 {[%clk 0:02:33.7]}
22... Qb4 {[%clk 0:02:54.3]} 23. Bc4 {[%clk 0:02:05]} 23... Qxd2+ {[%clk
0:02:49]} 24. Nxd2 {[%clk 0:01:57.9]} 24... Nb4 {[%clk 0:02:49.3]} 25. Kb1
{[%clk 0:01:53.3]} 25... Ba6 {[%clk 0:02:45.8]} 26. h4 {[%clk 0:01:35]} 26...
Bxc4 {[%clk 0:02:45.9]} 27. Nxc4 {[%clk 0:01:31.4]} 27... b5 {[%clk 0:02:34.6]}
28. Ne5 {[%clk 0:01:22]} 28... Rfc8 {[%clk 0:02:30.3]} 29. Rxd4 {[%clk
0:01:03.9]} 29... Nxc2 {[%clk 0:02:26.6]} 30. Rd7 {[%clk 0:00:54.5]} 30... Kg8
{[%clk 0:02:06.1]} 31. Rc1 {[%clk 0:00:41.4]} 31... Nb4 {[%clk 0:01:59.4]} 32.
Rxf7 {[%clk 0:00:27.7]} 32... Rxc1+ {[%clk 0:01:58.2]} 33. Kxc1 {[%clk 0:00:25]}
33... Rc8+ {[%clk 0:01:59.8]} 34. Kd1 {[%clk 0:00:15.1]} 34... Rc2 {[%clk
0:02:01.3]} 35. Rb7 {[%clk 0:00:06.1]} 35... Rxa2 {[%clk 0:02:01.3]} 36. Rxb5
{[%clk 0:00:02]} 36... Ra1+ {[%clk 0:01:45.9]} 0-1

[Event "Un Sabato di Lampo"]
[Site "Chess.com"]
[Date "2020.04.11"]
[Round "2"]
[White "mr6701"]
[Black "markk000"]
[Result "1-0"]
[WhiteElo "2107"]
[BlackElo "1558"]
[TimeControl "300+2"]
[EndTime "6:11:25 PDT"]
[Termination "mr6701 ha vinto per scaccomatto"]

1. e4 {[%clk 0:05:01.9]} 1... c5 {[%clk 0:04:58.4]} 2. d4 {[%clk 0:05:03.3]}
2... cxd4 {[%clk 0:04:58.7]} 3. c3 {[%clk 0:05:04.8]} 3... Nf6 {[%clk
0:04:58.1]} 4. e5 {[%clk 0:05:05.5]} 4... Nd5 {[%clk 0:04:54.9]} 5. cxd4 {[%clk
0:05:07.4]} 5... e6 {[%clk 0:04:53.2]} 6. Nf3 {[%clk 0:05:09.3]} 6... Bb4+
{[%clk 0:04:52.6]} 7. Bd2 {[%clk 0:05:09.6]} 7... Qa5 {[%clk 0:04:52.3]} 8. Nc3
{[%clk 0:05:00.2]} 8... Nxc3 {[%clk 0:04:51.8]} 9. bxc3 {[%clk 0:04:59.9]} 9...
Bxc3 {[%clk 0:04:52.5]} 10. Rc1 {[%clk 0:04:54.6]} 10... Bxd2+ {[%clk
0:04:47.2]} 11. Nxd2 {[%clk 0:04:51]} 11... Nc6 {[%clk 0:04:46.2]} 12. Qg4
{[%clk 0:04:44.9]} 12... O-O {[%clk 0:04:43.2]} 13. h4 {[%clk 0:04:45.4]} 13...
Qa3 {[%clk 0:04:40.3]} 14. Rd1 {[%clk 0:04:39]} 14... Qxa2 {[%clk 0:04:40.4]}
15. Bd3 {[%clk 0:04:39]} 15... Qd5 {[%clk 0:04:35.4]} 16. Nf3 {[%clk 0:04:28.5]}
16... a5 {[%clk 0:04:27.2]} 17. Bxh7+ {[%clk 0:04:21.2]} 17... Kh8 {[%clk
0:04:16.8]} 18. Be4 {[%clk 0:04:20.7]} 18... Qc4 {[%clk 0:03:59.2]} 19. Qh5+
{[%clk 0:04:19.7]} 19... Kg8 {[%clk 0:03:58.2]} 20. Qh7# {[%clk 0:04:20]} 1-0

[Event "Un Sabato di Lampo"]
[Site "Chess.com"]
[Date "2020.04.11"]
[Round "2"]
[White "MarcoCiva"]
[Black "SanSecondoPR"]
[Result "0-1"]
[WhiteElo "1403"]
[BlackElo "1312"]
[TimeControl "300+2"]
[EndTime "6:15:35 PDT"]
[Termination "SanSecondoPR ha vinto per abbandono"]

1. d4 {[%clk 0:05:01.9]} 1... d5 {[%clk 0:05:00.2]} 2. c4 {[%clk 0:05:02.1]}
2... e5 {[%clk 0:05:00.2]} 3. e3 {[%clk 0:05:01.6]} 3... Bb4+ {[%clk 0:04:59]}
4. Nc3 {[%clk 0:04:58.2]} 4... Bxc3+ {[%clk 0:04:56.9]} 5. bxc3 {[%clk
0:04:58.8]} 5... Nc6 {[%clk 0:04:56.8]} 6. Nf3 {[%clk 0:04:56.5]} 6... e4 {[%clk
0:04:55.7]} 7. Nd2 {[%clk 0:04:53.3]} 7... Nf6 {[%clk 0:04:54.9]} 8. f3 {[%clk
0:04:50.3]} 8... exf3 {[%clk 0:04:52.3]} 9. Nxf3 {[%clk 0:04:50.8]} 9... Bg4
{[%clk 0:04:51.3]} 10. cxd5 {[%clk 0:04:46.6]} 10... Qxd5 {[%clk 0:04:48.3]} 11.
Be2 {[%clk 0:04:42]} 11... Ne4 {[%clk 0:04:46]} 12. Qb3 {[%clk 0:04:29.7]} 12...
Qxb3 {[%clk 0:04:39.8]} 13. axb3 {[%clk 0:04:30.1]} 13... Nxc3 {[%clk
0:04:38.4]} 14. Ba3 {[%clk 0:04:18]} 14... Nxe2 {[%clk 0:04:35.8]} 15. Kxe2
{[%clk 0:04:18.5]} 15... O-O-O {[%clk 0:04:31.4]} 16. h3 {[%clk 0:04:18]} 16...
Bf5 {[%clk 0:04:24.2]} 17. g4 {[%clk 0:04:16.4]} 17... Be4 {[%clk 0:04:23.2]}
18. Ng5 {[%clk 0:04:12.7]} 18... Bxh1 {[%clk 0:04:12.4]} 19. Nxf7 {[%clk
0:04:13.4]} 19... Bd5 {[%clk 0:03:57.9]} 20. Nxh8 {[%clk 0:04:09.3]} 20... Rxh8
{[%clk 0:03:50.2]} 21. b4 {[%clk 0:04:01.4]} 21... Re8 {[%clk 0:03:48.4]} 22. b5
{[%clk 0:03:58.6]} 22... Nxd4+ {[%clk 0:03:47.1]} 23. Kd3 {[%clk 0:03:52.8]}
23... Nxb5 {[%clk 0:03:47]} 24. Bb2 {[%clk 0:03:43.2]} 24... Be4+ {[%clk
0:03:44.3]} 25. Ke2 {[%clk 0:03:42]} 25... Nd6 {[%clk 0:03:40.1]} 26. Rxa7
{[%clk 0:03:41.4]} 26... Kb8 {[%clk 0:03:34.8]} 27. Ra4 {[%clk 0:03:32.2]} 27...
b5 {[%clk 0:03:26.9]} 28. Ra5 {[%clk 0:03:24.7]} 28... c5 {[%clk 0:03:15.8]} 29.
Bxg7 {[%clk 0:03:22.6]} 29... b4 {[%clk 0:03:11.7]} 30. Rxc5 {[%clk 0:03:20.2]}
30... b3 {[%clk 0:03:00.3]} 31. Be5 {[%clk 0:03:19.1]} 31... Rxe5 {[%clk
0:02:52]} 32. Rxe5 {[%clk 0:03:19.4]} 32... b2 {[%clk 0:02:46.2]} 33. Re6 {[%clk
0:03:07.3]} 33... b1=Q {[%clk 0:02:42.5]} 34. Rxd6 {[%clk 0:03:08.4]} 34... Qb5+
{[%clk 0:02:39]} 35. Kf2 {[%clk 0:03:06.7]} 35... Qb2+ {[%clk 0:02:34.9]} 36.
Ke1 {[%clk 0:02:57.5]} 36... Qb4+ {[%clk 0:02:31.5]} 37. Kf2 {[%clk 0:02:57.3]}
0-1

[Event "Un Sabato di Lampo"]
[Site "Chess.com"]
[Date "2020.04.11"]
[Round "2"]
[White "Delsoldato03"]
[Black "BungalowBill"]
[Result "0-1"]
[WhiteElo "949"]
[BlackElo "1637"]
[TimeControl "300+2"]
[EndTime "6:17:30 PDT"]
[Termination "BungalowBill ha vinto per abbandono"]

1. d4 {[%clk 0:05:01.9]} 1... f5 {[%clk 0:04:59.3]} 2. c4 {[%clk 0:04:50.5]}
2... Nf6 {[%clk 0:04:59.7]} 3. Nc3 {[%clk 0:04:50.6]} 3... g6 {[%clk 0:05:00.3]}
4. Bg5 {[%clk 0:04:43.9]} 4... Bg7 {[%clk 0:05:00.8]} 5. e3 {[%clk 0:04:42.9]}
5... d6 {[%clk 0:05:00.1]} 6. Nf3 {[%clk 0:04:37.7]} 6... O-O {[%clk 0:05:00]}
7. Bd3 {[%clk 0:04:07.5]} 7... Nc6 {[%clk 0:04:59.7]} 8. O-O {[%clk 0:03:57.9]}
8... e5 {[%clk 0:04:57.5]} 9. Nd5 {[%clk 0:03:32.4]} 9... e4 {[%clk 0:04:49.3]}
10. Bxf6 {[%clk 0:03:24.7]} 10... Bxf6 {[%clk 0:04:49.2]} 11. Nxf6+ {[%clk
0:03:21.4]} 11... Qxf6 {[%clk 0:04:49.9]} 12. Bxe4 {[%clk 0:03:16.3]} 12... fxe4
{[%clk 0:04:50]} 13. Nd2 {[%clk 0:03:13.9]} 13... Qe7 {[%clk 0:04:23.9]} 14. Qb3
{[%clk 0:03:12.8]} 14... Kh8 {[%clk 0:04:15.7]} 15. Qc3 {[%clk 0:03:10.8]} 15...
Kg8 {[%clk 0:03:55]} 16. Qb3 {[%clk 0:03:10]} 16... Na5 {[%clk 0:03:48.1]} 17.
Qb5 {[%clk 0:03:01.4]} 17... b6 {[%clk 0:03:45.1]} 18. b4 {[%clk 0:02:51.1]}
18... a6 {[%clk 0:03:46.1]} 19. Qa4 {[%clk 0:02:37.1]} 19... Bd7 {[%clk
0:03:45]} 20. Qa3 {[%clk 0:02:33.6]} 20... Nb7 {[%clk 0:03:40.4]} 21. Qb3 {[%clk
0:02:31.6]} 21... Be6 {[%clk 0:03:39.1]} 22. Nxe4 {[%clk 0:02:28]} 22... b5
{[%clk 0:03:31.2]} 23. d5 {[%clk 0:02:19]} 23... Bf5 {[%clk 0:03:28.8]} 24. Ng3
{[%clk 0:02:13.8]} 24... Bd7 {[%clk 0:03:19.6]} 25. e4 {[%clk 0:02:07.1]} 25...
bxc4 {[%clk 0:03:18]} 26. Qxc4 {[%clk 0:02:07.3]} 26... Bb5 {[%clk 0:03:18.8]}
27. Qc3 {[%clk 0:01:53.8]} 27... Bxf1 {[%clk 0:03:19.4]} 28. Rxf1 {[%clk
0:01:55.1]} 28... Rae8 {[%clk 0:03:17.3]} 29. f3 {[%clk 0:01:52.1]} 29... Nd8
{[%clk 0:03:14]} 30. Rc1 {[%clk 0:01:50.5]} 30... Rf7 {[%clk 0:03:10.3]} 31. Qc4
{[%clk 0:01:44.6]} 31... Qd7 {[%clk 0:03:08.5]} 32. Qxa6 {[%clk 0:01:32.7]}
32... h5 {[%clk 0:02:59.8]} 33. a4 {[%clk 0:01:27.1]} 33... h4 {[%clk
0:02:56.7]} 34. Ne2 {[%clk 0:01:26.6]} 34... g5 {[%clk 0:02:56.1]} 35. Nd4
{[%clk 0:01:27.5]} 35... g4 {[%clk 0:02:53.3]} 36. a5 {[%clk 0:01:14.6]} 36...
gxf3 {[%clk 0:02:52.3]} 37. Nxf3 {[%clk 0:01:15.4]} 37... Qg4 {[%clk 0:02:50.6]}
38. Qe2 {[%clk 0:01:03.5]} 38... Rxe4 {[%clk 0:02:49.8]} 39. Qf2 {[%clk
0:00:58.7]} 0-1

[Event "Un Sabato di Lampo"]
[Site "Chess.com"]
[Date "2020.04.11"]
[Round "2"]
[White "sirmale49"]
[Black "crippo"]
[Result "1/2-1/2"]
[WhiteElo "1431"]
[BlackElo "1553"]
[TimeControl "300+2"]
[EndTime "6:21:33 PDT"]
[Termination "Patta d'accordo"]

1. e4 {[%clk 0:05:01.5]} 1... e5 {[%clk 0:05:00.4]} 2. f4 {[%clk 0:05:02.6]}
2... exf4 {[%clk 0:05:00.3]} 3. Nf3 {[%clk 0:05:03.6]} 3... Be7 {[%clk
0:05:01.6]} 4. d4 {[%clk 0:05:04.5]} 4... Bh4+ {[%clk 0:05:03.2]} 5. Ke2 {[%clk
0:05:01.7]} 5... c6 {[%clk 0:05:04.2]} 6. Bxf4 {[%clk 0:05:01.1]} 6... d5 {[%clk
0:05:04.5]} 7. g3 {[%clk 0:04:55.7]} 7... Be7 {[%clk 0:05:03.2]} 8. e5 {[%clk
0:04:56.6]} 8... Bg4 {[%clk 0:05:01.3]} 9. Bg2 {[%clk 0:04:53.3]} 9... c5 {[%clk
0:04:52.5]} 10. h3 {[%clk 0:04:53.7]} 10... Bh5 {[%clk 0:04:52.6]} 11. g4 {[%clk
0:04:54.1]} 11... Bg6 {[%clk 0:04:53.4]} 12. c3 {[%clk 0:04:52.6]} 12... Be4
{[%clk 0:04:54.1]} 13. Nbd2 {[%clk 0:04:45.4]} 13... f5 {[%clk 0:04:51.9]} 14.
g5 {[%clk 0:04:24.3]} 14... Nc6 {[%clk 0:04:45.7]} 15. Kf2 {[%clk 0:04:12.2]}
15... cxd4 {[%clk 0:04:45.2]} 16. Nxd4 {[%clk 0:04:05]} 16... Nxd4 {[%clk
0:04:44.8]} 17. cxd4 {[%clk 0:04:04.1]} 17... Bb4 {[%clk 0:04:45.5]} 18. Rc1
{[%clk 0:03:47.3]} 18... Bxd2 {[%clk 0:04:40.5]} 19. Qxd2 {[%clk 0:03:46.1]}
19... Ne7 {[%clk 0:04:41.5]} 20. Qc3 {[%clk 0:03:36.9]} 20... O-O {[%clk
0:04:41.3]} 21. Qc7 {[%clk 0:03:31.5]} 21... Qe8 {[%clk 0:04:39.9]} 22. e6
{[%clk 0:03:18.5]} 22... Ng6 {[%clk 0:04:15.7]} 23. Bd6 {[%clk 0:03:04.8]} 23...
Qxe6 {[%clk 0:04:08.1]} 24. Bxf8 {[%clk 0:03:02.9]} 24... Rxf8 {[%clk
0:04:07.9]} 25. Qg3 {[%clk 0:02:52.8]} 25... f4 {[%clk 0:03:56.2]} 26. Qg4
{[%clk 0:02:46]} 26... Bf5 {[%clk 0:03:54.6]} 27. Qe2 {[%clk 0:02:40.9]} 27...
Qb6 {[%clk 0:03:50.7]} 28. Rhd1 {[%clk 0:02:34.2]} 28... Qd6 {[%clk 0:03:34.2]}
29. Rc5 {[%clk 0:02:17.5]} 29... f3 {[%clk 0:03:14.9]} 30. Bxf3 {[%clk
0:01:45.2]} 30... Be4 {[%clk 0:03:15]} 31. Rc3 {[%clk 0:01:29.7]} 31... Qh2+
{[%clk 0:03:11.7]} 32. Ke1 {[%clk 0:01:22.7]} 32... Qg1+ {[%clk 0:02:55.8]} 33.
Kd2 {[%clk 0:01:08.6]} 33... Qxd4+ {[%clk 0:02:46.1]} 34. Kc1 {[%clk 0:01:08.7]}
34... Qa4 {[%clk 0:01:57.1]} 35. Bxe4 {[%clk 0:01:07.4]} 35... dxe4 {[%clk
0:01:55.9]} 36. Qc4+ {[%clk 0:01:05.9]} 36... Qxc4 {[%clk 0:01:54]} 37. Rxc4
{[%clk 0:01:06.8]} 37... e3 {[%clk 0:01:54.5]} 38. Re1 {[%clk 0:01:03.6]} 38...
Re8 {[%clk 0:01:50.3]} 39. Rc3 {[%clk 0:00:59.4]} 39... e2 {[%clk 0:01:47.6]}
40. Kd2 {[%clk 0:00:56]} 40... Nf4 {[%clk 0:01:48.1]} 41. Re3 {[%clk 0:00:50.9]}
41... Rd8+ {[%clk 0:01:47.7]} 42. Kc2 {[%clk 0:00:45.2]} 42... Ng2 {[%clk
0:01:46.8]} 43. R1xe2 {[%clk 0:00:43.1]} 43... Nxe3+ {[%clk 0:01:47.4]} 44. Rxe3
{[%clk 0:00:44]} 44... Rd7 {[%clk 0:01:45.4]} 45. Kc3 {[%clk 0:00:43.8]} 45...
Kf7 {[%clk 0:01:46.3]} 46. h4 {[%clk 0:00:43.7]} 46... Kg6 {[%clk 0:01:47.1]}
47. Re4 {[%clk 0:00:42.2]} 47... Kf5 {[%clk 0:01:47.4]} 48. Rc4 {[%clk
0:00:40.4]} 48... Kg6 {[%clk 0:01:45.9]} 49. b4 {[%clk 0:00:40.6]} 49... Kh5
{[%clk 0:01:46.6]} 50. a4 {[%clk 0:00:40.5]} 50... Re7 {[%clk 0:01:44.3]} 51.
Rd4 {[%clk 0:00:37.1]} 51... Rc7+ {[%clk 0:01:43.9]} 52. Kd3 {[%clk 0:00:33.1]}
52... h6 {[%clk 0:01:44.8]} 53. gxh6 {[%clk 0:00:32.2]} 53... Kxh6 {[%clk
0:01:44]} 54. b5 {[%clk 0:00:32.7]} 54... g6 {[%clk 0:01:44.3]} 55. a5 {[%clk
0:00:32.3]} 55... Kh5 {[%clk 0:01:44.8]} 56. b6 {[%clk 0:00:32.2]} 56... axb6
{[%clk 0:01:43.7]} 57. axb6 {[%clk 0:00:33]} 57... Rc6 {[%clk 0:01:44.6]} 58.
Rb4 {[%clk 0:00:31.4]} 58... g5 {[%clk 0:01:42.1]} 59. hxg5 {[%clk 0:00:31.3]}
59... Kxg5 {[%clk 0:01:42.5]} 60. Kd4 {[%clk 0:00:28.6]} 60... Kf4 {[%clk
0:01:42.7]} 61. Kd5+ {[%clk 0:00:29.3]} 61... Kf5 {[%clk 0:01:42.6]} 62. Rb3
{[%clk 0:00:15.4]} 62... Kf4 {[%clk 0:01:35.9]} 63. Rb4+ {[%clk 0:00:15.6]}
63... Ke3 {[%clk 0:01:36.1]} 64. Rb3+ {[%clk 0:00:16.3]} 64... Kd2 {[%clk
0:01:36.8]} 65. Rb2+ {[%clk 0:00:16.2]} 65... Kc3 {[%clk 0:01:37.6]} 66. Rb5
{[%clk 0:00:15.1]} 66... Kd3 {[%clk 0:01:37.2]} 67. Rb3+ {[%clk 0:00:15.1]}
67... Kc2 {[%clk 0:01:36]} 68. Rb5 {[%clk 0:00:15.6]} 68... Kc3 {[%clk
0:01:36.4]} 1/2-1/2

[Event "Un Sabato di Lampo"]
[Site "Chess.com"]
[Date "2020.04.11"]
[Round "3"]
[White "SanSecondoPR"]
[Black "Delsoldato03"]
[Result "1-0"]
[WhiteElo "1314"]
[BlackElo "930"]
[TimeControl "300+2"]
[EndTime "6:27:24 PDT"]
[Termination "SanSecondoPR ha vinto per abbandono"]

1. e4 {[%clk 0:05:01.9]} 1... e5 {[%clk 0:04:58.5]} 2. d4 {[%clk 0:05:02.1]}
2... exd4 {[%clk 0:04:44]} 3. c3 {[%clk 0:05:02.2]} 3... dxc3 {[%clk 0:04:42.7]}
4. Bc4 {[%clk 0:05:01.8]} 4... Nc6 {[%clk 0:04:38.1]} 5. Nf3 {[%clk 0:04:57.7]}
5... Bb4 {[%clk 0:04:27.2]} 6. bxc3 {[%clk 0:04:52.4]} 6... Ba5 {[%clk
0:04:25.6]} 7. O-O {[%clk 0:04:40]} 7... Nge7 {[%clk 0:04:15.6]} 8. Nd4 {[%clk
0:04:16.6]} 8... O-O {[%clk 0:04:11.7]} 9. Nf5 {[%clk 0:03:59.4]} 9... Nxf5
{[%clk 0:04:00.2]} 10. exf5 {[%clk 0:03:58.9]} 10... d6 {[%clk 0:03:59.6]} 11.
Nd2 {[%clk 0:03:50.1]} 11... Bxc3 {[%clk 0:03:55]} 12. Rb1 {[%clk 0:03:49.3]}
12... Rb8 {[%clk 0:03:29.3]} 13. Rb3 {[%clk 0:03:46]} 13... Bxd2 {[%clk
0:03:26.4]} 14. Qxd2 {[%clk 0:03:36.4]} 14... Bxf5 {[%clk 0:03:27.1]} 15. Rg3
{[%clk 0:03:21.8]} 15... Qf6 {[%clk 0:03:08.8]} 16. Bb2 {[%clk 0:03:16.5]} 16...
Qe7 {[%clk 0:02:58.9]} 17. Rxg7+ {[%clk 0:03:14.7]} 17... Kh8 {[%clk 0:02:51.3]}
18. Rxf7+ {[%clk 0:03:08.3]} 18... Kg8 {[%clk 0:02:50.8]} 19. Rxe7+ {[%clk
0:03:07.2]} 1-0